Workbook

Sheet Доход-расход
C2: Апрель | I2: 2016 | O2: Сбережения
O3: Общие | P3: 0
O4: Текущие | P4: =K7 -> 0
C5: Плановые показатели | F5: Фактические показатели | K5: Сумма сбережений в этом месяце
C6: Доход за месяц | F6: Доход за месяц | J6: Введите % от остатка
C7: Расход за месяц | F7: Расход за месяц | H7: 888 | J7: Сумма | K7: =K6*H8 -> 0
C8: Остаток | D8: =D6-D7 -> 0 | F8: Остаток | H8: =H6-H7 -> -888
C14: Коммунальные услуги | F14: Развлечения | I14: Транспорт | L14: Питание
D15: 888
C25: Итого | D25: =D15+D16+D17+D18+D19+D20+D21+D22+D23+D24 -> 888 | F25: Итого | G25: =G15+G16+G17+G18+G19+G20+G21+G22+G23+G24 -> 0 | I25: Итого | J25: =J15+J16+J17+J18+J19+J20+J21+J22+J23+J24 -> 0 | L25: Итого | M25: =M15+M16+M17+M18+M19+M20+M21+M22+M23+M24 -> 0
C27: Хозяйственные расходы
C38: Итого | D38: =D28+D29+D30+D31+D32+D33+D34+D35+D36+D37 -> 0 | F38: Итого | G38: =G28+G29+G30+G31+G32+G33+G34+G35+G36+G37 -> 0 | I38: Итого | J38: =J28+J29+J30+J31+J32+J33+J34+J35+J36+J37 -> 0 | L38: Итого | M38: =M28+M29+M30+M31+M32+M33+M34+M35+M36+M37 -> 0
C51: Итого | D51: =D41+D42+D43+D44+D45+D46+D47+D48+D49+D50 -> 0 | F51: Итого | G51: =G41+G42+G43+G44+G45+G46+G47+G48+G49+G50 -> 0 | I51: Итого | J51: =J41+J42+J43+J44+J45+J46+J47+J48+J49+J50 -> 0

Sheet Итоги года
C3: Затраты
C5: 2016
B6: Месяц | C6: Коммунальные услуги | D6: Развлечения | E6: Транспорт | F6: Кредиты | G6: Питание | H6: Дети | I6: Хозяйственные расходы | J6: Забота о себе | K6: Прочее | L6: Категория1 | M6: Категория2 | N6: Итого
B7: Январь | N7: =SUM(C7:M7) -> 0
B8: Февраль | N8: =SUM(C8:M8) -> 0
B9: Март | N9: 0
B10: Апрель | C10: 888 | D10: 0 | E10: 0 | G10: 0 | I10: 0 | N10: 888
B11: Май | N11: 0
B12: Июнь | N12: 0
B13: Июль | N13: 0
B14: Август | N14: 0
B15: Сентябрь | N15: 0
B16: Октябрь | N16: 0
B17: Ноябрь | N17: 0
B18: Декабрь | N18: 0
B19: Итого за год: | C19: 888 | D19: 0 | E19: 0 | F19: 0 | G19: 0 | H19: 0 | I19: 0 | J19: 0 | K19: 0 | L19: 0 | M19: 0 | N19: 888

Sheet Реализация бюджета
D2: Январь
D6: Доход/Расход | E6: План | F6: Факт | G6: Исполнение | H6: % исполнения | I6: Комментарии
D7: Доходы | E7: 0 | F7: 0 | G7: =F7-E7 -> 0 | H7: =IF(F7=E7,1,((F7-E7)/F7)*1) -> 1
D8: в том числе: | G8: =F8-E8 -> 0 | H8: =IF(F8=E8,1,((F8-E8)/F8)*1) -> 1
G9: 0 | H9: =IF(F9=E9,1,((F9-E9)/F9)*1) -> 1
G10: 0 | H10: 1
G11: 0 | H11: 1
G12: 0 | H12: 1
G13: 0 | H13: 1
D14: Расходы: | E14: =E15+E36+E47+E58+E69+E80+E91+E102+E113+E124+E135 -> 801 | F14: 0 | G14: =E14-F14 -> 801 | H14: =IF(F14=E14,1,((E14-F14)/E14)*1) -> 1
D15: Коммунальные услуги | E15: =E26+E27+E28+E29+E30+E31+E32+E33+E34+E35 -> 801 | F15: 0 | G15: =E15-F15 -> 801 | H15: =IF(F15=E15,1,((E15-F15)/E15)*1) -> 1
G16: 0 | H16: 1
G17: 0 | H17: 1
G18: 0 | H18: 1
G19: 0 | H19: 1
G20: 0 | H20: 1
G21: 0 | H21: 1
G22: 0 | H22: 1
G23: 0 | H23: 1
G24: 0 | H24: 1
G25: 0 | H25: 1
E26: 456 | G26: 456 | H26: 1
E27: 345 | G27: 345 | H27: 1
G28: 0 | H28: 1
G29: 0 | H29: 1
G30: 0 | H30: 1
G31: 0 | H31: 1
G32: 0 | H32: 1
G33: 0 | H33: 1
G34: 0 | H34: 1
G35: 0 | H35: 1
D36: Развлечения | E36: =E37+E38+E39+E40+E41+E42+E43+E44+E45+E46 -> 0 | F36: 0 | G36: 0 | H36: 1
G37: 0 | H37: 1
G38: 0 | H38: 1
G39: 0 | H39: 1
G40: 0 | H40: 1
G41: 0 | H41: 1
G42: 0 | H42: 1
G43: 0 | H43: 1
G44: 0 | H44: 1
G45: 0 | H45: 1
G46: 0 | H46: 1
D47: Транспорт | E47: =E48+E49+E50+E51+E52+E53+E54+E55+E56+E57 -> 0 | F47: 0 | G47: 0 | H47: 1
G48: 0 | H48: 1
G49: 0 | H49: 1
G50: 0 | H50: 1
G51: 0 | H51: 1
G52: 0 | H52: 1
G53: 0 | H53: 1
G54: 0 | H54: 1
G55: 0 | H55: 1
G56: 0 | H56: 1
G57: 0 | H57: 1
D58: Кредиты | E58: =E59+E60+E61+E62+E63+E64+E65+E66+E67+E68 -> 0 | F58: 0 | G58: 0 | H58: 1
G59: 0 | H59: 1
G60: 0 | H60: 1
G61: 0 | H61: 1
G62: 0 | H62: 1
G63: 0 | H63: 1
G64: 0 | H64: 1
G65: 0 | H65: 1
G66: 0 | H66: 1
G67: 0 | H67: 1
G68: 0 | H68: 1
D69: Питание | E69: =E70+E71+E72+E73+E74+E75+E76+E77+E78+E79 -> 0 | F69: 0 | G69: 0 | H69: 1
G70: 0 | H70: 1
G71: 0 | H71: 1
G72: 0 | H72: 1
G73: 0 | H73: 1
G74: 0 | H74: 1
G75: 0 | H75: 1
G76: 0 | H76: 1
G77: 0 | H77: 1
G78: 0 | H78: 1
G79: =E79-F79 -> 0 | H79: =IF(F79=E79,1,((E79-F79)/E79)*1) -> 1
D80: Дети | E80: =E81+E82+E83+E84+E85+E86+E87+E88+E89+E90 -> 0 | F80: 0 | G80: 0 | H80: 1
G81: 0 | H81: 1
G82: 0 | H82: 1
G83: 0 | H83: 1
G84: 0 | H84: 1
G85: 0 | H85: 1
G86: 0 | H86: 1
G87: 0 | H87: 1
G88: 0 | H88: 1
G89: 0 | H89: 1
G90: 0 | H90: 1
D91: Хозяйственные расходы | E91: =E92+E93+E94+E95+E96+E97+E98+E99+E100+E101 -> 0 | F91: 0 | G91: 0 | H91: 1
G92: 0 | H92: 1
G93: 0 | H93: 1
G94: 0 | H94: 1
G95: 0 | H95: 1
G96: 0 | H96: 1
G97: 0 | H97: 1
G98: 0 | H98: 1
G99: 0 | H99: 1
G100: 0 | H100: 1
G101: 0 | H101: 1
D102: Забота о себе | E102: =E103+E104+E105+E106+E107+E108+E109+E110+E111+E112 -> 0 | F102: 0 | G102: 0 | H102: 1
G103: 0 | H103: 1
G104: 0 | H104: 1
G105: 0 | H105: 1
G106: 0 | H106: 1
G107: 0 | H107: 1
G108: 0 | H108: 1
G109: 0 | H109: 1
G110: 0 | H110: 1
G111: 0 | H111: 1
G112: 0 | H112: 1
D113: Прочее | E113: =E114+E115+E116+E117+E118+E119+E120+E121+E122+E123 -> 0 | F113: 0 | G113: 0 | H113: 1
G114: 0 | H114: 1
G115: 0 | H115: 1
G116: 0 | H116: 1
G117: 0 | H117: 1
G118: 0 | H118: 1
G119: 0 | H119: 1
G120: 0 | H120: 1
G121: 0 | H121: 1
G122: 0 | H122: 1
G123: 0 | H123: 1
E124: =E125+E126+E127+E128+E129+E130+E132+E131+E133+E134 -> 0 | F124: 0 | G124: 0 | H124: 1
G125: 0 | H125: 1
G126: 0 | H126: 1
G127: 0 | H127: 1
G128: 0 | H128: 1
G129: 0 | H129: 1
G130: 0 | H130: 1
G131: 0 | H131: 1
G132: 0 | H132: 1
G133: 0 | H133: 1
G134: 0 | H134: 1
E135: =E136+E137+E138+E139+E140+E141+E142+E143+E144+E145 -> 0 | F135: 0 | G135: 0 | H135: 1
G136: 0 | H136: 1
G137: 0 | H137: 1
G138: 0 | H138: 1
G139: 0 | H139: 1
G140: 0 | H140: 1
G141: 0 | H141: 1
G142: 0 | H142: 1
G143: =E143-F143 -> 0 | H143: =IF(F143=E143,1,((E143-F143)/E143)*1) -> 1
G144: 0 | H144: 1
G145: 0 | H145: 1
D146: Итого доходов | E146: =E7 -> 0 | F146: =F7 -> 0 | G146: =F146-E146 -> 0 | H146: =IF(F146=E146,1,((F146-E146)/F146)*1) -> 1
D147: Итого расходов | E147: =E14 -> 801 | F147: =F14 -> 0 | G147: =E147-F147 -> 801 | H147: =IF(F147=E147,1,((E147-F147)/E147)*1) -> 1
D148: Итого сбережений | E148: 10000 | F148: 0 | G148: =F148-E148 -> -10000 | H148: =IF(F148=E148,1,((E148-F148)/E148)*1) -> 1
D149: Реализация целей | E149: 2000 | F149: 7664 | G149: =F149-E149 -> 5664 | H149: =IF(F149=E149,1,((F149-E149)/F149)*1) -> 0.739039666
D150: Финансовый результат | E150: =(E146-E147)-(E148-E149) -> -8801 | F150: =(F146-F147)-(F148-F149) -> 7664 | G150: =F150-E150 -> 16465 | H150: =IF(F150=E150,1,((F150-E150)/F150)*1) -> 2.14835595

Sheet рабочий (hidden)
A1: Плановые показатели | D1: Фактические показатели | I1: Сумма сбережений в этом месяце | W1: Плановые показатели | Z1: Фактические показатели | AE1: Сумма сбережений в этом месяце
A2: Доход за месяц | D2: Доход за месяц | H2: Введите % от остатка | P2: Январь | W2: Доход за месяц | Z2: Доход за месяц | AD2: Введите % от остатка
A3: Расход за месяц | D3: Расход за месяц | F3: 0 | H3: Сумма | I3: =I2*F4 -> 0 | W3: Расход за месяц | Z3: Расход за месяц | AB3: 11736 | AD3: Сумма | AE3: 0
A4: Остаток | B4: =B2-B3 -> 0 | D4: Остаток | F4: =F2-F3 -> 0 | W4: Остаток | X4: 0 | Z4: Остаток | AB4: -11736
AK5: январь | AL5: Февраль | AM5: март | AN5: апрель | AO5: май | AP5: июнь | AQ5: июль | AR5: август | AS5: сентябрь | AT5: октябрь | AU5: ноябрь | AV5: декабрь | AY5: январь | AZ5: февраль | BA5: март | BB5: апрель | BC5: май | BD5: июнь | BE5: июль | BF5: август | BG5: сентябрь | BH5: октябрь | BI5: ноябрь | BJ5: декабрь
P6: Доход/Расход | Q6: План | R6: Факт | S6: Исполнение | T6: % исполнения | U6: Комментарии | AK6: План | AL6: План | AM6: План | AN6: План | AO6: План | AP6: План | AQ6: План | AR6: План | AS6: План | AT6: План | AU6: План | AV6: План | AY6: Комментарии | AZ6: Комментарии | BA6: Комментарии | BB6: Комментарии | BC6: Комментарии | BD6: Комментарии | BE6: Комментарии | BF6: Комментарии | BG6: Комментарии | BH6: Комментарии | BI6: Комментарии | BJ6: Комментарии | BM6: Доход/Расход | BN6: январь | BO6: февраль | BP6: март | BQ6: апрель | BR6: май | BS6: июнь | BT6: июль | BU6: август | BV6: сентябрь | BW6: октябрь | BX6: ноябрь | BY6: декабрь
P7: Доходы | S7: =R7-Q7 -> 0 | AJ7: Доходы | AK7: =B2 -> 0 | AL7: =B50 -> 0 | AM7: =B99 -> 0 | AN7: =B146 -> 0 | AO7: =B193 -> 0 | AP7: =B240 -> 0 | AQ7: =B287 -> 0 | AR7: =B334 -> 0 | AS7: =B381 -> 0 | AT7: =B428 -> 0 | AV7: =B522 -> 0 | BM7: Доходы | BN7: =D649 -> 0 | BO7: =D650 -> 0 | BP7: =D651 -> 0 | BQ7: =D652 -> 0 | BR7: =D653 -> 0 | BS7: =D654 -> 0 | BT7: =D655 -> 0 | BU7: =D656 -> 0 | BV7: =D657 -> 0 | BW7: =D658 -> 0 | BX7: =D659 -> 0 | BY7: =D660 -> 0
P8: в том числе: | R8: =SUM(R9:R13) -> 0 | S8: =R8-Q8 -> 0 | AJ8: в том числе: | AL8: 0 | BM8: в том числе:
S9: 0
S10: 0
S11: 0
S12: 0
S13: 0
P14: Расходы: | Q14: =Q15+Q36+Q47+Q58+Q69+Q80+Q91+Q102+Q113+Q124+Q135 -> 0 | R14: =R15+R36+R47+R58+R69+R80+R91+R102+R113+R124+R135 -> 0 | S14: 0 | AJ14: Расходы:
P15: Коммунальные услуги | R15: =SUM(R16:R35) -> 0 | S15: 0 | AJ15: Коммунальные услуги | AK15: =SUM(AK16:AK35) -> 0 | AL15: =SUM(AL16:AL35) -> 0 | AM15: 0 | AN15: 0 | AO15: 0 | AP15: 0 | AQ15: 0 | AR15: 0 | AS15: 0 | AT15: 0 | AU15: 0 | AV15: 0
S16: 0
S17: 0
S18: 0
S19: 0
S20: 0
A21: Итого | B21: =B11+B12+B13+B14+B15+B16+B17+B18+B19+B20 -> 0 | D21: Итого | E21: =E11+E12+E13+E14+E15+E16+E17+E18+E19+E20 -> 0 | G21: Итого | H21: =H11+H12+H13+H14+H15+H16+H17+H18+H19+H20 -> 0 | J21: Итого | K21: =K11+K12+K13+K14+K15+K16+K17+K18+K19+K20 -> 0 | S21: 0 | W21: Итого | X21: 0 | Z21: Итого | AA21: 0 | AC21: Итого | AD21: 0 | AF21: Итого | AG21: 0
S22: 0
S23: 0
S24: 0
M25: =M15+M16+M17+M18+M19+M20+M21+M22+M23+M24 -> 0 | S25: 0
S26: 0
S27: 0
S28: 0
S29: 0
S30: 0
S31: 0
S32: 0
S33: 0
A34: Итого | B34: =B24+B25+B26+B27+B28+B29+B30+B31+B32+B33 -> 0 | D34: Итого | E34: =E24+E25+E26+E27+E28+E29+E30+E31+E32+E33 -> 0 | G34: Итого | H34: =H24+H25+H26+H27+H28+H29+H30+H31+H32+H33 -> 0 | J34: Итого | K34: =K24+K25+K26+K27+K28+K29+K30+K31+K32+K33 -> 0 | S34: 0 | W34: Итого | X34: 0 | Z34: Итого | AA34: 0 | AC34: Итого | AD34: 0 | AF34: Итого | AG34: 0
S35: 0
P36: Развлечения | R36: =SUM(R37:R46) -> 0 | S36: 0 | AJ36: Развлечения | AK36: =SUM(AK37:AK46) -> 0 | AL36: =SUM(AL37:AL46) -> 0 | AM36: 0 | AN36: 0 | AO36: 0 | AP36: 0 | AQ36: 0 | AR36: 0 | AS36: 0 | AT36: 0 | AU36: 0 | AV36: 0
S37: 0
M38: =M28+M29+M30+M31+M32+M33+M34+M35+M36+M37 -> 0 | S38: 0
S39: 0
S40: 0
S41: 0
S42: 0
S43: 0
S44: 0
S45: 0
S46: 0
A47: Итого | B47: =B37+B38+B39+B40+B41+B42+B43+B44+B45+B46 -> 0 | D47: Итого | E47: =E37+E38+E39+E40+E41+E42+E43+E44+E45+E46 -> 0 | G47: Итого | H47: =H37+H38+H39+H40+H41+H42+H43+H44+H45+H46 -> 0 | P47: Транспорт | R47: =SUM(R48:R57) -> 0 | S47: 0 | W47: Итого | X47: 0 | Z47: Итого | AA47: 0 | AC47: Итого | AD47: 0 | AJ47: Транспорт | AK47: =SUM(AK48:AK57) -> 0 | AL47: =SUM(AL48:AL57) -> 0 | AM47: 0 | AN47: 0 | AO47: 0 | AP47: 0 | AQ47: 0 | AR47: 0 | AS47: 0 | AT47: 0 | AU47: 0 | AV47: 0
S48: 0
A49: Плановые показатели | D49: Фактические показатели | I49: Сумма сбережений в этом месяце | S49: 0
A50: Доход за месяц | D50: Доход за месяц | H50: Введите % от остатка | S50: 0
A51: Расход за месяц | D51: Расход за месяц | F51: 0 | H51: Сумма | I51: =I50*F52 -> 0 | S51: 0
A52: Остаток | B52: =B50-B51 -> 0 | D52: Остаток | F52: =F50-F51 -> 0 | S52: 0
S53: 0
S54: 0
S55: 0
S56: 0
S57: 0
P58: Кредиты | R58: =SUM(R59:R68) -> 0 | S58: 0 | AJ58: Кредиты | AK58: =SUM(AK59:AK68) -> 0 | AL58: =SUM(AL59:AL68) -> 0 | AM58: 0 | AN58: 0 | AO58: 0 | AP58: 0 | AQ58: 0 | AR58: 0 | AS58: 0 | AT58: 0 | AU58: 0 | AV58: 0
S59: 0
S60: 0
S61: 0
S62: 0
S63: 0
S64: 0
S65: 0
S66: 0
S67: 0
S68: 0
A69: Итого | B69: =B59+B60+B61+B62+B63+B64+B65+B66+B67+B68 -> 0 | D69: Итого | E69: =E59+E60+E61+E62+E63+E64+E65+E66+E67+E68 -> 0 | G69: Итого | H69: =H59+H60+H61+H62+H63+H64+H65+H66+H67+H68 -> 0 | J69: Итого | K69: =K59+K60+K61+K62+K63+K64+K65+K66+K67+K68 -> 0 | P69: Питание | R69: =SUM(R70:R79) -> 0 | S69: 0 | AJ69: Питание | AK69: =SUM(AK70:AK79) -> 0 | AL69: =SUM(AL70:AL79) -> 0 | AM69: 0 | AN69: 0 | AO69: 0 | AP69: 0 | AQ69: 0 | AR69: 0 | AS69: 0 | AT69: 0 | AU69: 0 | AV69: 0
S70: 0
S71: 0
S72: 0
S73: 0
S74: 0
S75: 0
S76: 0
S77: 0
S78: 0
S79: 0
P80: Дети | R80: =SUM(R81:R90) -> 0 | S80: 0 | AJ80: Дети | AK80: =SUM(AK81:AK90) -> 0 | AL80: =SUM(AL81:AL90) -> 0 | AM80: 0 | AN80: 0 | AO80: 0 | AP80: 0 | AQ80: 0 | AR80: 0 | AS80: 0 | AT80: 0 | AU80: 0 | AV80: 0
S81: 0
A82: Итого | B82: =B72+B73+B74+B75+B76+B77+B78+B79+B80+B81 -> 0 | D82: Итого | E82: =E72+E73+E74+E75+E76+E77+E78+E79+E80+E81 -> 0 | G82: Итого | H82: =H72+H73+H74+H75+H76+H77+H78+H79+H80+H81 -> 0 | J82: Итого | K82: =K72+K73+K74+K75+K76+K77+K78+K79+K80+K81 -> 0 | S82: =R82-Q82 -> 0
S83: 0
S84: 0
S85: 0
S86: 0
S87: 0
S88: 0
S89: 0
S90: 0
P91: Хозяйственные расходы | R91: =SUM(R92:R101) -> 0 | S91: 0 | AJ91: Хозяйственные расходы | AK91: =SUM(AK92:AK101) -> 0 | AL91: =SUM(AL92:AL101) -> 0 | AM91: 0 | AN91: 0 | AO91: 0 | AP91: 0 | AQ91: 0 | AR91: 0 | AS91: 0 | AT91: 0 | AU91: 0 | AV91: 0
S92: 0
S93: 0
S94: 0
A95: Итого | B95: =B85+B86+B87+B88+B89+B90+B91+B92+B93+B94 -> 0 | D95: Итого | E95: =E85+E86+E87+E88+E89+E90+E91+E92+E93+E94 -> 0 | G95: Итого | H95: =H85+H86+H87+H88+H89+H90+H91+H92+H93+H94 -> 0 | S95: 0
S96: 0
S97: 0
A98: Плановые показатели | D98: Фактические показатели | I98: Сумма сбережений в этом месяце | S98: 0
A99: Доход за месяц | D99: Доход за месяц | H99: Введите % от остатка | S99: 0
A100: Расход за месяц | D100: Расход за месяц | F100: 0 | H100: Сумма | I100: =I99*F101 -> 0 | S100: 0
A101: Остаток | B101: =B99-B100 -> 0 | D101: Остаток | F101: =F99-F100 -> 0 | S101: 0
P102: Забота о себе | R102: =SUM(R103:R112) -> 0 | S102: 0 | AJ102: Забота о себе | AK102: =SUM(AK103:AK112) -> 0 | AL102: =SUM(AL103:AL112) -> 0 | AM102: 0 | AN102: 0 | AO102: 0 | AP102: 0 | AQ102: 0 | AR102: 0 | AS102: 0 | AT102: 0 | AU102: 0 | AV102: 0
S103: 0
S104: 0
S105: 0
S106: 0
S107: 0
S108: 0
S109: 0
S110: 0
S111: 0
S112: 0
P113: Прочее | R113: =SUM(R114:R123) -> 0 | S113: 0 | AJ113: Прочее | AK113: =SUM(AK114:AK123) -> 0 | AL113: =SUM(AL114:AL123) -> 0 | AM113: 0 | AN113: 0 | AO113: 0 | AP113: 0 | AQ113: 0 | AR113: 0 | AS113: 0 | AT113: 0 | AU113: 0 | AV113: 0
S114: 0
S115: 0
S116: 0
S117: 0
A118: Итого | B118: =B108+B109+B110+B111+B112+B113+B114+B115+B116+B117 -> 0 | D118: Итого | E118: =E108+E109+E110+E111+E112+E113+E114+E115+E116+E117 -> 0 | G118: Итого | H118: =H108+H109+H110+H111+H112+H113+H114+H115+H116+H117 -> 0 | J118: Итого | K118: =K108+K109+K110+K111+K112+K113+K114+K115+K116+K117 -> 0 | S118: 0
S119: 0
S120: 0
S121: 0
S122: 0
S123: 0
R124: =SUM(R125:R134) -> 0 | S124: 0 | AJ124: Книги | AK124: =SUM(AK125:AK134) -> 0 | AL124: =SUM(AL125:AL134) -> 0 | AM124: 0 | AN124: 0 | AO124: 0 | AP124: 0 | AQ124: 0 | AR124: 0 | AS124: 0 | AT124: 0 | AU124: 0 | AV124: 0
S125: 0
S126: 0
S127: 0
S128: 0
S129: 0
S130: 0
A131: Итого | B131: =B121+B122+B123+B124+B125+B126+B127+B128+B129+B130 -> 0 | D131: Итого | E131: =E121+E122+E123+E124+E125+E126+E127+E128+E129+E130 -> 0 | G131: Итого | H131: =H121+H122+H123+H124+H125+H126+H127+H128+H129+H130 -> 0 | J131: Итого | K131: =K121+K122+K123+K124+K125+K126+K127+K128+K129+K130 -> 0 | S131: 0
S132: 0
S133: 0
S134: 0
R135: =SUM(R136:R145) -> 0 | S135: 0 | AK135: =SUM(AK136:AK145) -> 0 | AL135: =SUM(AL136:AL145) -> 0 | AM135: 0 | AN135: 0 | AO135: 0 | AP135: 0 | AQ135: 0 | AR135: 0 | AS135: 0 | AT135: 0 | AU135: 0 | AV135: 0
S136: 0
S137: 0
S138: 0
S139: 0
S140: 0
S141: 0
S142: 0
S143: 0
A144: Итого | B144: =B134+B135+B136+B137+B138+B139+B140+B141+B142+B143 -> 0 | D144: Итого | E144: =E134+E135+E136+E137+E138+E139+E140+E141+E142+E143 -> 0 | G144: Итого | H144: =H134+H135+H136+H137+H138+H139+H140+H141+H142+H143 -> 0 | S144: 0
A145: Плановые показатели | D145: Фактические показатели | I145: Сумма сбережений в этом месяце | S145: 0
A146: Доход за месяц | D146: Доход за месяц | H146: Введите % от остатка
A147: Расход за месяц | D147: Расход за месяц | F147: 888 | H147: Сумма | I147: =I146*F148 -> 0
A148: Остаток | B148: =B146-B147 -> 0 | D148: Остаток | F148: =F146-F147 -> -888
A154: Коммунальные услуги | D154: Развлечения | G154: Транспорт | J154: Питание
B155: 888
A165: Итого | B165: =B155+B156+B157+B158+B159+B160+B161+B162+B163+B164 -> 888 | D165: Итого | E165: =E155+E156+E157+E158+E159+E160+E161+E162+E163+E164 -> 0 | G165: Итого | H165: =H155+H156+H157+H158+H159+H160+H161+H162+H163+H164 -> 0 | J165: Итого | K165: =K155+K156+K157+K158+K159+K160+K161+K162+K163+K164 -> 0
A167: Хозяйственные расходы
A178: Итого | B178: =B168+B169+B170+B171+B172+B173+B174+B175+B176+B177 -> 0 | D178: Итого | E178: =E168+E169+E170+E171+E172+E173+E174+E175+E176+E177 -> 0 | G178: Итого | H178: =H168+H169+H170+H171+H172+H173+H174+H175+H176+H177 -> 0 | J178: Итого | K178: =K168+K169+K170+K171+K172+K173+K174+K175+K176+K177 -> 0
A191: Итого | B191: =B181+B182+B183+B184+B185+B186+B187+B188+B189+B190 -> 0 | D191: Итого | E191: =E181+E182+E183+E184+E185+E186+E187+E188+E189+E190 -> 0 | G191: Итого | H191: =H181+H182+H183+H184+H185+H186+H187+H188+H189+H190 -> 0
A192: Плановые показатели | D192: Фактические показатели | I192: Сумма сбережений в этом месяце
A193: Доход за месяц | D193: Доход за месяц | H193: Введите % от остатка
A194: Расход за месяц | D194: Расход за месяц | F194: 0 | H194: Сумма | I194: =I193*F195 -> 0
A195: Остаток | B195: =B193-B194 -> 0 | D195: Остаток | F195: =F193-F194 -> 0
A212: Итого | B212: =B202+B203+B204+B205+B206+B207+B208+B209+B210+B211 -> 0 | D212: Итого | E212: =E202+E203+E204+E205+E206+E207+E208+E209+E210+E211 -> 0 | G212: Итого | H212: =H202+H203+H204+H205+H206+H207+H208+H209+H210+H211 -> 0 | J212: Итого | K212: =K202+K203+K204+K205+K206+K207+K208+K209+K210+K211 -> 0
A225: Итого | B225: =B215+B216+B217+B218+B219+B220+B221+B222+B223+B224 -> 0 | D225: Итого | E225: =E215+E216+E217+E218+E219+E220+E221+E222+E223+E224 -> 0 | G225: Итого | H225: =H215+H216+H217+H218+H219+H220+H221+H222+H223+H224 -> 0 | J225: Итого | K225: =K215+K216+K217+K218+K219+K220+K221+K222+K223+K224 -> 0
A238: Итого | B238: =B228+B229+B230+B231+B232+B233+B234+B235+B236+B237 -> 0 | D238: Итого | E238: =E228+E229+E230+E231+E232+E233+E234+E235+E236+E237 -> 0 | G238: Итого | H238: =H228+H229+H230+H231+H232+H233+H234+H235+H236+H237 -> 0
A239: Плановые показатели | D239: Фактические показатели | I239: Сумма сбережений в этом месяце
A240: Доход за месяц | D240: Доход за месяц | H240: Введите % от остатка
A241: Расход за месяц | D241: Расход за месяц | F241: 0 | H241: Сумма | I241: =I240*F242 -> 0
A242: Остаток | B242: =B240-B241 -> 0 | D242: Остаток | F242: =F240-F241 -> 0
A259: Итого | B259: =B249+B250+B251+B252+B253+B254+B255+B256+B257+B258 -> 0 | D259: Итого | E259: =E249+E250+E251+E252+E253+E254+E255+E256+E257+E258 -> 0 | G259: Итого | H259: =H249+H250+H251+H252+H253+H254+H255+H256+H257+H258 -> 0 | J259: Итого | K259: =K249+K250+K251+K252+K253+K254+K255+K256+K257+K258 -> 0
A272: Итого | B272: =B262+B263+B264+B265+B266+B267+B268+B269+B270+B271 -> 0 | D272: Итого | E272: =E262+E263+E264+E265+E266+E267+E268+E269+E270+E271 -> 0 | G272: Итого | H272: =H262+H263+H264+H265+H266+H267+H268+H269+H270+H271 -> 0 | J272: Итого | K272: =K262+K263+K264+K265+K266+K267+K268+K269+K270+K271 -> 0
A285: Итого | B285: =B275+B276+B277+B278+B279+B280+B281+B282+B283+B284 -> 0 | D285: Итого | E285: =E275+E276+E277+E278+E279+E280+E281+E282+E283+E284 -> 0 | G285: Итого | H285: =H275+H276+H277+H278+H279+H280+H281+H282+H283+H284 -> 0
A286: Плановые показатели | D286: Фактические показатели | I286: Сумма сбережений в этом месяце
A287: Доход за месяц | D287: Доход за месяц | H287: Введите % от остатка
A288: Расход за месяц | D288: Расход за месяц | H288: Сумма | I288: =I287*F289 -> 0
A289: Остаток | B289: =B287-B288 -> 0 | D289: Остаток | F289: =F287-F288 -> 0
A306: Итого | B306: =B296+B297+B298+B299+B300+B301+B302+B303+B304+B305 -> 0 | D306: Итого | E306: =E296+E297+E298+E299+E300+E301+E302+E303+E304+E305 -> 0 | G306: Итого | H306: =H296+H297+H298+H299+H300+H301+H302+H303+H304+H305 -> 0 | J306: Итого | K306: =K296+K297+K298+K299+K300+K301+K302+K303+K304+K305 -> 0
A319: Итого | B319: =B309+B310+B311+B312+B313+B314+B315+B316+B317+B318 -> 0 | D319: Итого | E319: =E309+E310+E311+E312+E313+E314+E315+E316+E317+E318 -> 0 | G319: Итого | H319: =H309+H310+H311+H312+H313+H314+H315+H316+H317+H318 -> 0 | J319: Итого | K319: =K309+K310+K311+K312+K313+K314+K315+K316+K317+K318 -> 0
A332: Итого | B332: =B322+B323+B324+B325+B326+B327+B328+B329+B330+B331 -> 0 | D332: Итого | E332: =E322+E323+E324+E325+E326+E327+E328+E329+E330+E331 -> 0 | G332: Итого | H332: =H322+H323+H324+H325+H326+H327+H328+H329+H330+H331 -> 0
A333: Плановые показатели | D333: Фактические показатели | I333: Сумма сбережений в этом месяце
A334: Доход за месяц | D334: Доход за месяц | H334: Введите % от остатка
A335: Расход за месяц | D335: Расход за месяц | F335: 0 | H335: Сумма | I335: =I334*F336 -> 0
A336: Остаток | B336: =B334-B335 -> 0 | D336: Остаток | F336: =F334-F335 -> 0
A353: Итого | B353: =B343+B344+B345+B346+B347+B348+B349+B350+B351+B352 -> 0 | D353: Итого | E353: =E343+E344+E345+E346+E347+E348+E349+E350+E351+E352 -> 0 | G353: Итого | H353: =H343+H344+H345+H346+H347+H348+H349+H350+H351+H352 -> 0 | J353: Итого | K353: =K343+K344+K345+K346+K347+K348+K349+K350+K351+K352 -> 0
A366: Итого | B366: =B356+B357+B358+B359+B360+B361+B362+B363+B364+B365 -> 0 | D366: Итого | E366: =E356+E357+E358+E359+E360+E361+E362+E363+E364+E365 -> 0 | G366: Итого | H366: =H356+H357+H358+H359+H360+H361+H362+H363+H364+H365 -> 0 | J366: Итого | K366: =K356+K357+K358+K359+K360+K361+K362+K363+K364+K365 -> 0
A379: Итого | B379: =B369+B370+B371+B372+B373+B374+B375+B376+B377+B378 -> 0 | D379: Итого | E379: =E369+E370+E371+E372+E373+E374+E375+E376+E377+E378 -> 0 | G379: Итого | H379: =H369+H370+H371+H372+H373+H374+H375+H376+H377+H378 -> 0
A380: Плановые показатели | D380: Фактические показатели | I380: Сумма сбережений в этом месяце
A381: Доход за месяц | D381: Доход за месяц | H381: Введите % от остатка
A382: Расход за месяц | D382: Расход за месяц | F382: 0 | H382: Сумма | I382: =I381*F383 -> 0
A383: Остаток | B383: =B381-B382 -> 0 | D383: Остаток | F383: =F381-F382 -> 0
A400: Итого | B400: =B390+B391+B392+B393+B394+B395+B396+B397+B398+B399 -> 0 | D400: Итого | E400: =E390+E391+E392+E393+E394+E395+E396+E397+E398+E399 -> 0 | G400: Итого | H400: =H390+H391+H392+H393+H394+H395+H396+H397+H398+H399 -> 0 | J400: Итого | K400: =K390+K391+K392+K393+K394+K395+K396+K397+K398+K399 -> 0
A413: Итого | B413: =B403+B404+B405+B406+B407+B408+B409+B410+B411+B412 -> 0 | D413: Итого | E413: =E403+E404+E405+E406+E407+E408+E409+E410+E411+E412 -> 0 | G413: Итого | H413: =H403+H404+H405+H406+H407+H408+H409+H410+H411+H412 -> 0 | J413: Итого | K413: =K403+K404+K405+K406+K407+K408+K409+K410+K411+K412 -> 0
A426: Итого | B426: =B416+B417+B418+B419+B420+B421+B422+B423+B424+B425 -> 0 | D426: Итого | E426: =E416+E417+E418+E419+E420+E421+E422+E423+E424+E425 -> 0 | G426: Итого | H426: =H416+H417+H418+H419+H420+H421+H422+H423+H424+H425 -> 0
A427: Плановые показатели | D427: Фактические показатели | I427: Сумма сбережений в этом месяце
A428: Доход за месяц | D428: Доход за месяц | H428: Введите % от остатка
A429: Расход за месяц | D429: Расход за месяц | F429: 0 | H429: Сумма | I429: =I428*F430 -> 0
A430: Остаток | B430: =B428-B429 -> 0 | D430: Остаток | F430: =F428-F429 -> 0
A447: Итого | B447: =B437+B438+B439+B440+B441+B442+B443+B444+B445+B446 -> 0 | D447: Итого | E447: =E437+E438+E439+E440+E441+E442+E443+E444+E445+E446 -> 0 | G447: Итого | H447: =H437+H438+H439+H440+H441+H442+H443+H444+H445+H446 -> 0 | J447: Итого | K447: =K437+K438+K439+K440+K441+K442+K443+K444+K445+K446 -> 0
A460: Итого | B460: =B450+B451+B452+B453+B454+B455+B456+B457+B458+B459 -> 0 | D460: Итого | E460: =E450+E451+E452+E453+E454+E455+E456+E457+E458+E459 -> 0 | G460: Итого | H460: =H450+H451+H452+H453+H454+H455+H456+H457+H458+H459 -> 0 | J460: Итого | K460: =K450+K451+K452+K453+K454+K455+K456+K457+K458+K459 -> 0
A473: Итого | B473: =B463+B464+B465+B466+B467+B468+B469+B470+B471+B472 -> 0 | D473: Итого | E473: =E463+E464+E465+E466+E467+E468+E469+E470+E471+E472 -> 0 | G473: Итого | H473: =H463+H464+H465+H466+H467+H468+H469+H470+H471+H472 -> 0
A474: Плановые показатели | D474: Фактические показатели | I474: Сумма сбережений в этом месяце
A475: Доход за месяц | D475: Доход за месяц | H475: Введите % от остатка
A476: Расход за месяц | D476: Расход за месяц | F476: 0 | H476: Сумма | I476: =I475*F477 -> 0
A477: Остаток | B477: =B475-B476 -> 0 | D477: Остаток | F477: =F475-F476 -> 0
... 77 more rows

Sheet А-П
D2: Активы/Пассивы
D7: Активы | K7: Пассивы
D8: Наименование актива | E8: Комментарий | I8: Стоимость | K8: Наименование пассива | L8: Комментарий | P8: Сумма
D9: Квартира
D10: Машина
E24: Итого активов | I24: =SUM(I9:J23) -> 0 | L24: Итого пассивов | P24: =SUM(P9:Q23) -> 0

Sheet Финансовые цели
C3: Финансовые Цели | R3: Ваши сбережения
R7: 0
C8: Текущий месяц
C9: Апрель
C12: Краткосрочные цели | O12: Фото | R12: Фото
C13: Номер | E13: Название | M13: Цена
C14: 1.
C15: 2. | O15: Фото | R15: Фото
C16: 3.
C17: 4.
C20: Среднесрочные цели | O20: Фото | R20: Фото
C21: Номер | E21: Название | M21: Цена
C22: 1.
C23: 2. | O23: Фото | R23: Фото
C24: 3.
C25: 4.
C28: Долгосрочные цели | O28: Фото | R28: Фото
C29: Номер | E29: Название | M29: Цена
C30: 1.
C31: 2. | O31: Фото | R31: Фото
C32: 3.
C33: 4.

Sheet Инвестиции
B2: Инвестиции и накопления | L2: Ваши сбережения
L4: 0
B9: Валюта | M9: Инвестиции приносят доход
B10: Дата | C10: Вид валюты | D10: Сумма | E10: Курс сделки/покупки | F10: Стоимость | G10: Текущий курс | H10: Текущая стоимость
A11: 1. | F11: =D11*E11 -> 0 | H11: =D11*G11 -> 0
A12: 2. | F12: =D12*E12 -> 0 | H12: =D12*G12 -> 0
A13: 3. | F13: =D13*E13 -> 0 | H13: =D13*G13 -> 0 | M13: Инвестиции не приносят доход, возможно следует избавиться от инвестиции
A14: 4. | F14: =D14*E14 -> 0 | H14: =D14*G14 -> 0
A15: 5. | F15: =D15*E15 -> 0 | H15: =D15*G15 -> 0
B18: Акции/Облигации
B19: Дата | C19: Актив | D19: Количество | E19: Курс сделки | F19: Сумма затрат | G19: Дивиденды/%-ты(руб.) | H19: Текущая цена | I19: Доход | M19: Инвестировать
A20: 1. | F20: =D20*E20 -> 0 | I20: =D20*H20+G20 -> 0
A21: 2. | F21: =D21*E21 -> 0 | I21: =D21*H21+G21 -> 0
A22: 3. | F22: 0 | I22: 0 | M22: Продать/забрать деньги
A23: 4. | F23: 0 | I23: 0
A24: 5. | F24: 0 | I24: 0
L25: Ячейки, выделенные цветом:
B27: Депозит | L27: заполняются вручную
B28: Дата | C28: Сумма | D28: %-т | E28: Срок | F28: m | G28: Сумма
A29: 1. | G29: =C29*(1+D29/F29)^F29*E29 -> 
A30: 2. | G30: =C30*(1+D30/F30)^F30*E30 -> 
B34: Депозит (с одинаковой суммой пополнения)
B35: Дата | C35: Сумма 1 вклада | D35: Сумма пополнений | E35: % | F35: срок | G35: m | H35: p | I35: Сумма
A36: 1. | I36: =C36+(D36*((((1+E36/G36)^(G36*F36))-1)/(E36/G36))/((((1+E36/G36)^(G36/H36))-1)/(E36/G36))) -> 
A37: 2. | I37: =C37+D37*((((((1+E37/G37)^G37*F37)-1)/(E37/G37))/((((1+E37/G37)^(G37/H37))-1)/(E37/G37)))) -> 

Sheet Инвестиционный портфель
A2: Определение типа инвестора | N2: Возможные инвестиционные активы | Q2: Идеальный* инвестиционный портфель для умеренного инвестора
N3: Название | O3: Минимальный размер капитала, необходимый для инвестирования (тыс.руб.)
B4: Результаты опроса | Q4: Банковский депозит
A5: № | B5: Агрессивный | C5: Умеренный | D5: Мечтатель | E5: Консервативный | F5: Трейдер | Q5: Монеты
A6: 1 | B6: 0 | C6: 0.7 | D6: 0 | E6: 0.92 | F6: 0 | Q6: Опционы
A7: 2 | B7: 1 | C7: 1 | D7: 0 | E7: 0 | F7: 0 | N7: Банковский депозит | O7: 10 | Q7: Акции
A8: 3 | B8: 1 | C8: 1 | D8: 0 | E8: 1 | F8: 1 | N8: Монеты | O8: 3 | Q8: Еврооблигации
A9: 4 | B9: 0 | C9: 5 | D9: 0 | E9: 0 | F9: 5 | N9: Акции | O9: 30
A10: 5 | B10: 1 | C10: 1 | D10: 0 | E10: 1 | F10: 0 | N10: Опционы | O10: 10 | Q10: Возможное распределение введенного размера капитала по инструментам:
A11: 6 | B11: 0 | C11: 0.83 | D11: 0 | E11: 0.93 | F11: 0 | N11: Депозитарные расписки | O11: 100
A12: Сумма: | B12: =SUM(B6:B11) -> 3 | C12: =SUM(C6:C11) -> 9.53 | D12: 0 | E12: 3.85 | F12: 6 | N12: Еврооблигации | O12: 100 | Q12: Банковский депозит | R12: 0.5
A13: =SUM(B12:F12) -> 22.38 | B13: =B12/A13 -> 0.1340482574 | C13: =C12/A13 -> 0.4258266309 | D13: =D12/A13 -> 0 | E13: =E12/A13 -> 0.172028597 | F13: =F12/A13 -> 0.2680965147 | N13: Доверительное управление | O13: 100 | Q13: Монеты | R13: 0.0533333309
Q14: Опционы | R14: 0.1233333349
B15: Процентное соотношение типов инвестора | Q15: Акции | R15: 0.3233333528
Q16: - | R16: 0
N20: Ваш размер капитала | O20: 100 | P20: тыс. руб.
N22: Рекомендуем вкладывать средства в инструменты, подверженные наименьшим рискам. К таким относятся:
N25: ОМС
N26: Облигации государственные
N27: Облигации корпоративные
